bitfinex/quotes_ETHUSD_20251108
["timestamp","ask_amount","ask_price","bid_price","bid_amount"]
[1762623515038,1.1413059,3395.2,3395.1,0.001]
[1762623515241,0.2739019,3395.2,3395.1,2.94642134]
[1762623515427,0.2739019,3395.2,3395.1,3.53581461]
[1762623516052,0.2739019,3395.2,3395.1,3.56526882]
[1762623516352,0.2739019,3395.2,3395.1,3.68301461]
[1762623532384,1.3936019,3395.2,3395.1,0.001]
[1762623533714,1.3936019,3395.2,3395.1,2.94642134]
[1762623533896,0.9077019,3395.2,3395.1,2.94642134]
[1762623535997,1.3936019,3395.2,3395.1,0.001]
[1762623536208,1.82747449,3395.2,3395.1,0.001]
[1762623536921,1.3936019,3395.2,3395.1,0.001]
[1762623539060,1.3936019,3395.2,3395.1,2.94642134]
[1762623539261,0.9077019,3395.2,3395.1,2.94642134]
[1762623539413,1.3936019,3395.2,3395.1,2.94642134]
[1762623539618,1.3936019,3395.2,3395.1,0.001]
[1762623543275,5.00977188,3395.2,3395.1,0.001]
[1762623543419,1.43133729,3395.2,3395.1,0.001]
[1762623543612,1.1660059,3395.2,3395.1,0.001]
[1762623543816,1.6578059,3395.2,3395.1,0.001]
[1762623544067,1.2523019,3395.2,3395.1,0.001]
[1762623544418,1.2523019,3395.2,3395.1,2.94642134]
[1762623544618,0.2739019,3395.2,3395.1,2.94642134]
[1762623547744,0.7301019,3395.2,3395.1,2.94642134]
[1762623548667,0.7301019,3395.2,3395.1,0.001]
[1762623549435,0.2739019,3395.2,3395.1,3.56528449]
[1762623549630,0.2739019,3395.2,3395.1,3.53583028]
[1762623556961,0.2739019,3395.2,3395.1,3.68303028]
[1762623557167,0.1472,3396.1,3395.1,0.73760894]
[1762623557465,0.27597099,3396.0,3395.9,2.94472746]
[1762623559915,0.27597099,3396.0,3395.9,8.02816657]
[1762623560220,0.27597099,3396.0,3395.9,2.94472746]
[1762623561992,0.27597099,3396.0,3395.9,8.02816657]
[1762623562197,0.27597099,3396.0,3395.9,9.12546497]
[1762623563313,1e-08,3396.2,3396.1,2.94455404]
[1762623563636,0.27512145,3396.2,3396.1,2.94455404]
[1762623566138,1e-08,3396.2,3396.1,2.94455404]
[1762623566305,1e-08,3396.2,3396.1,4.20426604]
[1762623566635,1e-08,3396.2,3396.1,5.54018378]
[1762623569960,1e-08,3396.2,3396.1,5.68738378]
[1762623571835,1e-08,3396.2,3396.1,4.42767178]
[1762623572051,0.48050001,3396.2,3396.1,4.42767178]
[1762623572362,1e-08,3396.2,3396.1,4.42767178]
[1762623574748,0.48050001,3396.2,3396.1,3.09175404]
[1762623574953,0.97630001,3396.2,3396.1,3.09175404]
[1762623575355,0.48050001,3396.2,3396.1,3.09175404]
[1762623575767,0.7550803,3396.2,3396.1,3.09175404]
[1762623576197,1.2508803,3396.2,3396.1,3.09175404]
[1762623579912,1.2508803,3396.2,3396.1,2.94455404]
[1762623580702,1.2508803,3396.2,3396.1,2.94555404]
[1762623586167,1.25173144,3396.2,3396.1,2.94555404]
[1762623592518,1.25173144,3396.2,3396.1,0.001]
[1762623593083,1.81201691,3396.2,3396.1,0.001]
[1762623593684,1.25173144,3396.2,3396.1,2.94555404]
[1762623594502,1.25173144,3396.2,3396.1,0.001]
[1762623594788,1.25173144,3396.2,3396.1,2.94555404]
[1762623596506,2.51144344,3396.2,3396.1,0.001]
[1762623596883,2.51144344,3396.2,3396.1,2.94555404]
[1762623597321,1.53514344,3396.2,3396.1,2.94555404]
[1762623597526,1.25323144,3396.2,3396.1,2.94555404]
[1762623601652,0.76693144,3396.2,3396.1,2.94555404]
[1762623602664,0.27543144,3396.2,3396.1,2.94555404]
[1762623602834,0.27543144,3396.2,3396.1,3.83198283]
[1762623604553,0.2760571,3396.2,3396.1,3.83198283]
[1762623605165,0.002,3396.6,3396.5,2.94420727]
[1762623605657,0.002,3396.6,3396.5,2.97364934]
[1762623606529,0.002,3396.6,3396.5,3.12084934]
[1762623606730,0.002,3396.6,3396.5,4.00416455]
[1762623607377,0.002,3396.6,3396.5,4.15156609]
[1762623609864,0.002,3396.6,3396.5,4.12212402]
[1762623617268,0.27711981,3396.6,3396.5,4.12212402]
[1762623619182,1.25351981,3396.6,3396.5,4.12212402]
[1762623619390,0.77651981,3396.6,3396.5,4.12212402]
[1762623619899,0.27711981,3396.6,3396.5,4.12212402]
[1762623621287,0.27711981,3396.6,3396.5,4.15156609]
[1762623621798,0.27711981,3396.6,3396.5,4.12212402]
[1762623623058,1e-08,3396.6,3396.5,9.34703558]
[1762623623261,0.002,3396.7,3396.6,2.94412059]
[1762623623461,0.002,3396.7,3396.6,4.49416286]
[1762623623661,0.002,3396.7,3396.6,4.46472166]
[1762623627104,0.002,3396.7,3396.6,4.94372166]
[1762623629570,1e-08,3397.0,3396.9,2.94386057]
[1762623629770,1e-08,3397.0,3396.9,8.28573006]
[1762623629988,1e-08,3397.0,3396.9,10.28907862]
[1762623630190,1e-08,3397.0,3396.9,10.40701131]
[1762623633595,1e-08,3397.0,3396.9,11.96130542]
[1762623635005,1e-08,3397.0,3396.9,11.66672331]
[1762623635623,1e-08,3397.3,3397.2,2.94360061]
[1762623635943,0.002,3397.7,3397.6,2.94325406]
[1762623636418,0.002,3397.7,3397.6,3.08965406]
[1762623636608,0.002,3397.7,3397.6,3.1190866]
[1762623636812,0.002,3397.7,3397.6,3.5890866]
[1762623637011,0.002,3397.7,3397.6,5.21182602]
[1762623637390,0.002,3397.7,3397.6,5.18239348]
[1762623638229,0.4624,3397.7,3397.6,5.18239348]
[1762623638438,0.9324,3397.7,3397.6,3.55965406]
[1762623638624,0.9324,3397.7,3397.6,3.08965406]
[1762623642508,0.002,3397.7,3397.6,2.94325406]
[1762623642713,0.002,3397.7,3397.6,3.97264829]
[1762623643530,0.4624,3397.7,3397.6,3.97264829]
[1762623645110,0.002,3397.7,3397.6,3.97264829]
[1762623646338,0.4653,3397.7,3397.6,4.45214829]
[1762623646534,0.9448,3397.7,3397.6,3.56915406]
[1762623646736,0.4653,3397.7,3397.6,3.08965406]
[1762623646923,0.002,3397.7,3397.6,3.08965406]
[1762623647125,0.4653,3397.7,3397.6,3.08965406]
[1762623647328,0.9448,3397.7,3397.6,3.08965406]
[1762623647728,1.2200201,3397.7,3397.6,3.08965406]
[1762623651417,1.2200201,3397.7,3397.6,3.97405543]
[1762623652745,1.2200201,3397.7,3397.6,3.08965406]
[1762623657558,1.2200201,3397.7,3397.6,2.94325406]
[1762623657559,0.2772201,3397.7,3397.6,2.94325406]
[1762623657729,0.2772201,3397.7,3397.6,4.71074698]
[1762623657930,0.7405201,3397.7,3397.6,4.71074698]
[1762623659164,1.2200201,3397.7,3397.6,3.82765282]
[1762623660369,0.002,3398.1,3398.0,2.94290759]
[1762623660527,0.002,3398.1,3398.0,2.97233666]
[1762623660528,0.2779193,3398.1,3398.0,2.97233666]
[1762623660729,0.2779193,3398.1,3398.0,4.49178756]
[1762623660937,0.7412193,3398.1,3398.0,6.53062917]
[1762623661259,0.7412193,3398.1,3398.0,4.97128756]
[1762623661260,1.2207193,3398.1,3398.0,4.97128756]
[1762623662840,0.7412193,3398.1,3398.0,4.97128756]
[1762623663561,0.7360193,3398.1,3398.0,4.97128756]
[1762623664474,0.002,3398.4,3398.3,2.94264779]
[1762623664641,0.002,3398.4,3398.3,9.27667586]
[1762623665042,0.002,3398.4,3398.3,9.74867586]
[1762623667342,0.002,3398.4,3398.3,10.15417986]
[1762623667631,0.002,3398.4,3398.3,15.33257201]
[1762623667835,0.002,3398.4,3398.3,17.73181604]
[1762623669171,0.005,3400.9,3400.5,2.94066987]
[1762623669375,0.005,3400.9,3399.5,5.07431607]
[1762623669376,0.472,3400.5,3399.5,5.07431607]
[1762623669666,0.472,3400.5,3400.4,2.94083049]
[1762623669875,0.9301,3400.5,3400.4,2.94083049]
[1762623670478,0.9301,3400.5,3400.2,2.94092582]
[1762623670772,0.4581,3400.3,3399.6,0.472]
[1762623670979,0.472,3400.4,3399.8,2.94127327]
[1762623671278,0.6391,3399.9,3399.7,2.94139108]
[1762623671475,0.181,3399.9,3399.8,2.94134949]
[1762623671977,0.6391,3399.9,3399.8,2.94134949]
[1762623672278,1.1111,3399.9,3399.8,2.94134949]
[1762623672448,1.1111,3399.9,3399.7,2.94140823]
[1762623672643,0.9301,3399.8,3399.7,2.94140823]
[1762623673655,0.9301,3399.8,3399.6,3.41348787]
[1762623673862,0.9301,3399.8,3398.3,5.34181992]
[1762623673863,0.9301,3399.7,3399.3,2.9417759]
[1762623674079,0.472,3399.7,3399.2,2.941842]
[1762623674284,0.472,3399.6,3399.3,2.9417754]
[1762623674777,0.4581,3399.4,3399.3,2.9417754]
[1762623674979,0.4581,3399.4,3399.3,2.94178213]
[1762623675185,0.9301,3399.4,3399.3,2.94178213]
[1762623675681,0.181,3399.9,3399.7,2.941436]
[1762623675878,0.181,3399.9,3399.8,2.94134949]
[1762623676250,0.6391,3399.9,3399.8,2.94134949]
[1762623676453,0.91326422,3399.9,3399.8,3.8252193]
[1762623676786,1.38526422,3399.9,3399.8,3.8252193]
[1762623677591,1.38526422,3399.9,3399.8,3.9716193]
[1762623680687,0.91326422,3399.9,3399.8,3.9716193]
[1762623681019,0.73226422,3399.9,3399.8,3.9716193]
[1762623681303,1.20426422,3399.9,3399.8,3.9716193]
[1762623681596,0.27416422,3399.9,3399.8,3.9716193]
[1762623683506,0.181,3400.8,3399.8,3.9716193]
[1762623683507,0.653,3400.8,3400.6,2.94064409]
[1762623683711,0.653,3400.8,3399.8,0.88386981]
[1762623683712,0.4581,3399.9,3399.8,0.88386981]
[1762623683875,0.4581,3399.9,3399.0,1.259712]
[1762623683876,0.91312641,3399.9,3399.0,5.07431607]
[1762623684080,0.6391,3399.9,3399.8,2.94134949]
[1762623684290,0.91317925,3399.9,3399.8,2.94134949]
[1762623684822,1.38517925,3399.9,3399.7,3.82531866]
[1762623684988,0.74607925,3399.8,3399.6,2.94150893]
[1762623685318,0.27407925,3399.7,3399.6,2.94150893]
[1762623685521,1.20417925,3399.7,3399.5,2.9415539]
[1762623685719,1.20417925,3399.7,3399.4,2.94163399]
[1762623685720,0.4581,3399.5,3399.4,2.94163399]
[1762623685919,0.27427615,3399.5,3399.4,0.472]
[1762623686103,0.27427615,3399.5,3398.6,5.07431607]
[1762623686104,1.20437615,3399.5,3398.6,5.07431607]
[1762623686306,0.27427615,3399.4,3399.0,0.472]
[1762623686541,0.27427615,3399.3,3399.2,2.94181528]
[1762623686689,0.4581,3399.1,3399.0,0.472]
[1762623686889,0.73237615,3399.1,3399.0,2.94204177]
[1762623687124,1.20437615,3399.1,3399.0,2.94204177]
[1762623687329,0.27427615,3399.1,3399.0,2.94204177]
[1762623687631,0.27427615,3399.1,3399.0,3.53555044]
[1762623688194,0.73237615,3399.1,3399.0,3.53555044]
[1762623688396,1.20437615,3399.1,3399.0,3.53555044]
[1762623688590,1.20437615,3399.1,3399.0,2.94204177]
[1762623691138,1.20437615,3399.1,3398.7,0.472]
[1762623691346,0.66,3398.8,3398.7,3.4142885]
[1762623691511,0.93427615,3398.8,3398.7,3.4142885]
[1762623691893,1.39257615,3398.8,3398.7,3.4142885]
[1762623693510,1.39257615,3398.8,3398.7,3.5606885]
[1762623695729,1.39257615,3398.8,3398.7,3.0886885]
[1762623697532,1.39257615,3398.8,3398.6,0.88417199]
[1762623697829,1.20277615,3398.7,3398.4,2.94349161]
[1762623698048,0.4702,3398.5,3398.4,2.94349161]
[1762623698246,0.74447615,3398.5,3398.4,2.94349161]
[1762623698398,1.20277615,3398.5,3398.4,2.94349161]
[1762623699714,1.20277615,3398.5,3398.4,0.001]
[1762623702428,1.20343022,3398.5,3398.4,2.9435612]
[1762623707833,1.20343022,3398.5,3398.4,0.001]
[1762623709469,10.63389593,3398.5,3398.4,0.001]
[1762623709766,2.61710524,3398.5,3398.4,0.001]
[1762623710074,5.55957986,3398.5,3398.4,0.001]
[1762623711214,5.96508386,3398.5,3398.4,0.001]
[1762623718179,2.61710524,3398.5,3398.4,0.001]
[1762623718481,2.00484222,3398.5,3398.4,0.001]
[1762623718872,2.00484222,3398.5,3398.4,2.9435612]
[1762623719069,1.53464222,3398.5,3398.4,2.9435612]
[1762623719262,0.27493022,3398.5,3398.4,2.9435612]
[1762623721879,0.27493022,3398.5,3398.4,3.0899612]
[1762623722086,0.27493022,3398.5,3398.4,3.69332237]
[1762623722282,0.27493022,3398.5,3398.4,3.0899612]
[1762623723991,0.27693022,3398.5,3398.4,3.0899612]
[1762623726665,0.27693022,3398.5,3398.4,4.12295458]
[1762623727266,0.27693022,3398.5,3398.4,3.0899612]
[1762623731504,0.27693022,3398.5,3398.4,4.3496732]
[1762623732167,1.21613022,3398.5,3398.4,3.0899612]
[1762623732585,0.27693022,3398.5,3398.4,3.69332237]
[1762623737091,0.002,3398.5,3398.4,3.69332237]
[1762623739852,0.002,3398.5,3398.4,8.88281812]
[1762623739989,0.002,3398.5,3398.4,9.7694115]
[1762623740386,0.002,3398.5,3398.4,9.99613012]
[1762623740983,0.002,3398.5,3398.4,11.54562019]
[1762623741184,0.002,3398.5,3398.4,9.99613012]
[1762623742226,0.002,3398.5,3398.4,10.66993012]
[1762623743028,0.002,3398.5,3398.4,14.52993012]
[1762623743528,0.002,3399.2,3399.1,2.94195522]
[1762623743821,0.002,3399.2,3399.1,8.71985122]
[1762623744186,0.4828,3400.4,3400.3,2.94091697]
[1762623744427,0.27477154,3400.4,3400.3,2.94091697]
[1762623744746,0.27477154,3400.4,3399.5,5.18949575]
[1762623744747,0.73117154,3400.4,3399.5,5.18949575]
[1762623744899,0.73117154,3400.4,3399.1,0.58840025]
[1762623744900,0.6474,3399.6,3399.1,0.58840025]
[1762623745112,0.4828,3400.3,3400.1,2.9410722]
[1762623745338,0.191,3399.9,3399.8,2.94134949]
[1762623745535,0.46580962,3399.9,3399.8,2.94134949]
[1762623745735,1.40500962,3399.9,3399.8,2.94134949]
[1762623747955,1.40500962,3399.9,3398.8,1.03411414]
[1762623748232,0.4564,3399.7,3399.3,2.94173482]
[1762623748424,0.4564,3399.4,3399.3,2.94173482]
[1762623748624,0.73120962,3399.4,3399.3,2.94173482]
[1762623748830,1.21400962,3399.4,3399.2,2.94184262]
[1762623749027,2.94135302,3399.8,3399.1,2.94194192]
[1762623749028,0.75760962,3399.3,3399.1,2.94194192]
[1762623749227,0.27480962,3399.2,3399.1,2.94194192]
[1762623749425,1.21400962,3399.2,3399.1,2.94194192]
[1762623749807,1.21400962,3399.2,3399.0,2.94200917]
[1762623750039,0.4564,3399.0,3398.9,3.08850388]
[1762623750266,0.73120962,3399.0,3398.9,3.08850388]
[1762623750422,1.21400962,3399.0,3398.9,3.08850388]
[1762623751614,1.21400962,3399.0,3398.8,2.94214981]
[1762623751835,2.94165725,3399.5,3398.8,2.94214981]
[1762623751836,0.93850962,3398.9,3398.8,2.94214981]
[1762623752033,1.41600962,3398.9,3398.8,2.94214981]
[1762623752546,1.41600962,3398.9,3398.8,2.94221489]
[1762623753324,0.75230962,3398.9,3398.8,2.94221489]
[1762623753644,1.41600962,3398.9,3398.8,3.08861489]
[1762623756925,0.27480962,3398.9,3398.8,3.64949702]
[1762623757242,1.41600962,3398.9,3398.8,3.08861489]
[1762623759747,1.41666939,3398.9,3398.8,3.08861489]
[1762623761513,1.41666939,3398.9,3398.8,3.08961489]
[1762623761717,1.41866939,3398.9,3398.8,3.08961489]
[1762623762952,0.27746939,3398.9,3398.8,3.08961489]
[1762623763153,0.27746939,3398.9,3398.8,4.11987067]
[1762623763451,0.27746939,3398.9,3398.8,5.12456267]
[1762623764529,0.27746939,3398.9,3398.8,4.09044853]
[1762623765030,1.39686939,3398.9,3398.8,0.001]
[1762623765228,1.39687679,3398.9,3398.8,0.001]
[1762623766256,5.59871712,3398.9,3398.8,0.001]
[1762623769066,6.00422112,3398.9,3398.8,0.001]
[1762623772069,4.74450912,3398.9,3398.8,0.001]
[1762623772238,6.03210777,3398.9,3398.8,0.001]
[1762623774241,7.29181977,3398.9,3398.8,0.001]
[1762623777174,3.34797862,3398.5,3398.4,0.001]
[1762623777484,10.53376316,3398.5,3398.4,0.001]
[1762623777689,11.01116316,3398.5,3398.4,0.001]
[1762623777872,12.70073916,3398.5,3398.4,0.001]
[1762623778456,12.58799339,3398.5,3398.4,0.001]
[1762623781182,7.51124341,3398.5,3398.4,0.001]
[1762623781479,2.47798879,3398.5,3398.4,0.001]
[1762623781662,5.42046341,3398.5,3398.4,0.001]
[1762623781848,4.16075141,3398.5,3398.4,0.001]
[1762623782338,5.42046341,3398.5,3398.4,0.001]
[1762623782992,5.82596741,3398.5,3398.4,0.001]
[1762623783183,7.50471561,3398.5,3398.4,0.001]
[1762623791399,4.56224099,3398.5,3398.4,0.001]
[1762623791604,5.82596741,3398.5,3398.4,0.001]
[1762623791920,2.88349279,3398.5,3398.4,0.001]
[1762623792131,5.82596741,3398.5,3398.4,0.001]
[1762623794639,1.99628879,3398.5,3398.4,0.001]
[1762623794842,1.53518879,3398.5,3398.4,0.001]
[1762623796416,2.02048879,3398.5,3398.4,0.001]
[1762623796701,4.96296341,3398.5,3398.4,0.001]
[1762623796896,2.02048879,3398.5,3398.4,0.001]
[1762623797097,5.44466341,3398.5,3398.4,0.001]
[1762623797445,5.98910542,3398.5,3398.4,0.001]
[1762623799409,6.39460942,3398.5,3398.4,0.001]
[1762623800102,3.4521348,3398.5,3398.4,0.001]
[1762623800308,6.39460942,3398.5,3398.4,0.001]
[1762623803418,6.39519495,3398.5,3398.4,0.001]
[1762623815696,6.36379495,3398.5,3398.4,0.001]
[1762623822592,1.94127832,3398.5,3398.4,0.001]
[1762623822763,4.88375294,3398.5,3398.4,0.001]
[1762623823364,5.37501412,3398.5,3398.4,0.001]
[1762623823938,5.87011412,3398.5,3398.4,0.001]
[1762623824263,6.30521016,3398.5,3398.4,0.001]
[1762623824461,8.03208175,3398.5,3398.4,0.001]
[1762623824693,7.59698571,3398.5,3398.4,0.001]
[1762623826591,12.67363658,3398.5,3398.4,0.001]
[1762623832032,12.79158631,3398.5,3398.4,0.001]
[1762623834829,12.79145824,3398.5,3398.4,0.001]
[1762623840339,7.71470826,3398.5,3398.4,0.001]
[1762623842032,6.20495453,3398.5,3398.4,0.001]
[1762623842235,4.47808294,3398.5,3398.4,0.001]
[1762623842781,4.88358694,3398.5,3398.4,0.001]
[1762623845523,5.34158694,3398.5,3398.4,0.001]
[1762623845727,5.80438694,3398.5,3398.4,0.001]
[1762623846154,3.34884469,3397.5,3397.4,0.001]
[1762623846353,5.34245301,3397.5,3397.4,0.001]
[1762623846559,4.88445301,3397.5,3397.4,0.0031]
[1762623847333,5.00242257,3397.5,3397.4,0.001]
[1762623847532,5.00237507,3397.5,3397.4,0.001]
[1762623847876,5.81600735,3397.5,3397.4,0.001]
[1762623848073,2.05903438,3397.5,3397.4,0.0031]
[1762623848356,1.53556082,3397.5,3397.4,0.0052]
[1762623848560,1.53556082,3397.5,3397.4,0.0031]
[1762623848868,4.47890151,3397.5,3397.4,0.0031]
[1762623849361,1.53556082,3397.5,3397.4,0.0031]
[1762623849761,4.47890151,3397.5,3397.4,0.0031]
[1762623850631,1.53556082,3397.5,3397.4,0.0031]
[1762623851968,4.47890151,3397.5,3397.4,0.0031]
[1762623853040,0.27584882,3397.5,3397.4,0.0052]
[1762623853465,0.27584882,3397.5,3397.4,3.53796619]
[1762623853867,0.27584882,3397.5,3397.4,4.42249011]
[1762623856069,0.27584882,3397.5,3397.4,4.56889011]
[1762623856868,0.27584882,3397.5,3397.4,1.62546279]
[1762623857068,0.27584882,3397.5,3397.4,0.88972392]
[1762623857233,0.27584882,3397.5,3397.4,2.94862732]
[1762623857857,0.27584882,3397.5,3397.4,0.0052]
[1762623858056,0.27584882,3397.5,3397.4,0.0031]
[1762623862487,0.27584882,3397.5,3397.4,2.94652732]
[1762623862677,0.27584882,3397.5,3397.4,2.94862732]
[1762623862993,0.27584882,3397.5,3397.4,3.58800445]
[1762623864496,0.27584882,3397.5,3397.4,0.0031]
[1762623865471,0.27584882,3397.5,3397.4,2.94652732]
[1762623867598,0.27584882,3397.5,3397.4,0.0031]
[1762623868391,0.27584882,3397.5,3397.4,2.94652732]
[1762623872169,0.27584882,3397.5,3397.4,3.09502732]
[1762623872516,0.27584882,3397.5,3397.4,4.2691892]
[1762623879194,0.27584882,3397.5,3397.4,9.4609076]
[1762623882225,0.27567343,3397.5,3397.4,9.4609076]
[1762623886659,0.002,3397.7,3397.4,12.40433492]
[1762623886948,0.002,3397.7,3397.6,2.94535406]
[1762623887149,0.002,3397.7,3397.6,4.4831563]
[1762623887334,0.002,3397.7,3397.6,4.6316563]
[1762623887531,0.002,3397.7,3397.6,8.4916563]
[1762623887936,0.002,3397.7,3397.6,8.6095525]
[1762623891224,0.002,3397.7,3397.6,8.6074525]
[1762623891824,0.002,3397.7,3397.6,8.6095525]
[1762623892048,0.002,3397.7,3397.6,8.4895563]
[1762623892627,0.002,3397.7,3397.6,4.6274563]
[1762623892628,0.4894,3397.7,3397.6,4.6274563]
[1762623892866,0.4894,3397.7,3397.6,3.08965406]
[1762623893172,0.9697,3397.7,3397.6,3.08965406]
[1762623894056,0.9697,3397.7,3397.6,0.1464]
[1762623894258,0.9697,3397.7,3397.6,2.94325406]
[1762623894472,0.9697,3397.7,3397.5,2.94330543]
[1762623894771,0.4803,3397.6,3397.5,2.94330543]
[1762623894936,0.9677,3397.6,3397.5,2.94330543]
[1762623896588,0.9677,3397.6,3397.4,0.1474]
[1762623896894,0.9677,3397.5,3397.4,0.001]
[1762623897898,1.48495524,3397.5,3397.4,0.001]
[1762623898062,0.9677,3397.5,3397.4,0.001]
[1762623898806,1.24303501,3397.5,3397.4,0.001]
[1762623902798,2.50274701,3397.5,3397.4,0.001]
[1762623904185,1.24303501,3397.5,3397.4,0.001]
[1762623904382,1.67649874,3397.5,3397.4,0.001]
[1762623905197,1.24303501,3397.5,3397.4,0.001]
[1762623908012,5.4460877,3397.5,3397.4,0.001]
[1762623908791,2.50274701,3397.5,3397.4,0.001]
[1762623909500,5.4460877,3397.5,3397.4,0.001]
[1762623910323,2.50274701,3397.5,3397.4,0.001]
[1762623910514,3.34185969,3397.5,3397.4,0.001]
[1762623910920,6.28520038,3397.5,3397.4,0.001]
[1762623914028,3.34185969,3397.5,3397.4,0.001]
[1762623914396,6.28520038,3397.5,3397.4,0.001]
[1762623917325,3.34185969,3397.5,3397.4,0.001]
[1762623918234,3.34385969,3397.5,3397.4,0.001]
[1762623918445,2.50474701,3397.5,3397.4,0.001]
[1762623922840,5.4480877,3397.5,3397.4,0.001]
[1762623928643,2.50474701,3397.5,3397.4,0.001]
[1762623929214,2.02444701,3397.5,3397.4,0.001]
[1762623929415,5.8363917,3397.5,3397.4,0.001]
[1762623929617,6.71455487,3397.5,3397.4,0.001]
[1762623936779,6.66455487,3397.5,3397.4,0.001]
[1762623938079,6.66538927,3397.5,3397.4,0.001]
[1762623943870,6.20220259,3397.5,3397.4,0.001]
[1762623944253,6.66420259,3397.5,3397.4,0.001]
[1762623944951,1.97519473,3397.5,3397.4,0.001]
[1762623945256,1.53779473,3397.5,3397.4,0.001]
[1762623945583,10.88335445,3397.5,3397.4,0.001]
[1762623946569,10.42135445,3397.5,3397.4,0.001]
[1762623947582,10.88335445,3397.5,3397.4,0.001]
[1762623948390,12.56053024,3397.5,3397.4,0.001]
[1762623948582,5.34463942,3397.5,3397.4,0.001]
[1762623952799,4.08492742,3397.5,3397.4,0.001]
[1762623953100,3.62692742,3397.5,3397.4,0.001]
[1762623953902,4.08492742,3397.5,3397.4,0.001]
[1762623954099,4.54692742,3397.5,3397.4,0.001]
[1762623954264,9.62364245,3397.5,3397.4,0.001]
[1762623954468,11.17485121,3397.5,3397.4,0.001]
[1762623956269,10.88335445,3397.5,3397.4,0.001]
[1762623958074,11.00133689,3397.5,3397.4,0.001]
[1762623958572,10.88335445,3397.5,3397.4,0.001]
[1762623960208,10.88349463,3397.5,3397.4,0.001]
[1762623962679,11.33316107,3397.5,3397.4,0.001]
[1762623962903,13.05532166,3397.5,3397.4,0.001]
[1762623963119,12.72364079,3397.5,3397.4,0.001]
[1762623963415,12.60565522,3397.5,3397.4,0.001]
[1762623964085,12.14365522,3397.5,3397.4,0.001]
[1762623964391,7.56094019,3397.5,3397.4,0.001]
[1762623966734,12.75458507,3397.5,3397.4,0.001]
[1762623967121,12.87257064,3397.5,3397.4,0.001]
[1762623968586,13.32223708,3397.5,3397.4,0.001]
[1762623968993,12.87257064,3397.5,3397.4,0.001]
[1762623973736,6.66143619,3397.5,3397.4,0.001]
[1762623973943,5.4332756,3397.5,3397.4,0.001]
[1762623974107,5.8387796,3397.5,3397.4,0.001]
[1762623977649,5.3447796,3397.5,3397.4,0.001]
[1762623978676,0.27822291,3397.5,3397.4,0.0531]
[1762623979437,0.68372691,3397.5,3397.4,0.0531]
[1762623980874,0.42462291,3397.5,3397.4,0.0531]
[1762623981040,0.42462291,3397.5,3397.4,0.1052]
[1762623981783,0.42462291,3397.5,3397.4,0.70462635]
[1762623983074,0.42462291,3397.5,3397.4,3.62538794]
[1762623983373,0.27822291,3397.5,3397.4,0.70462635]
[1762623983576,0.27822291,3397.5,3397.4,0.1052]
[1762623984373,0.27822291,3397.5,3397.4,3.04862732]
[1762623984545,0.27822291,3397.5,3397.4,0.0531]
[1762623986096,4.6178676,3397.5,3397.4,0.001]
[1762623986381,6.04621309,3397.5,3397.4,0.001]
[1762623987387,2.93423891,3397.5,3397.4,0.001]
[1762623987790,2.44023891,3397.5,3397.4,0.001]
[1762623990071,5.3835796,3397.5,3397.4,0.001]
[1762623990672,2.44023891,3397.5,3397.4,0.001]
[1762623990874,5.3835796,3397.5,3397.4,0.001]
[1762623991687,2.44023891,3397.5,3397.4,0.001]
[1762623991899,5.3835796,3397.5,3397.4,0.001]
[1762623993566,5.8438796,3397.5,3397.4,0.001]
[1762623993763,6.72278491,3397.5,3397.4,0.001]
[1762623995078,3.77944422,3397.5,3397.4,0.001]
[1762623995387,5.8438796,3397.5,3397.4,0.001]
[1762623996296,5.84332991,3397.5,3397.4,0.001]
[1762623997900,5.38302991,3397.5,3397.4,0.001]
[1762623998476,5.84332991,3397.5,3397.4,0.001]
[1762624000414,6.29299635,3397.5,3397.4,0.001]
[1762624000618,8.04230297,3397.5,3397.4,0.001]
[1762624000989,4.60864332,3397.4,3397.3,0.001]
[1762624001282,4.60881661,3397.2,3397.1,0.001]
[1762624001500,10.54073471,3397.2,3397.1,0.001]
[1762624001684,12.90991229,3397.2,3397.1,0.001]
[1762624001881,13.02791317,3397.2,3397.1,0.001]
[1762624002710,13.48971849,3397.2,3397.1,0.001]
[1762624003812,13.02791317,3397.2,3397.1,0.001]
[1762624007515,13.47757961,3397.2,3397.1,0.001]
[1762624007800,8.28393473,3397.2,3397.1,0.001]
[1762624007987,7.71626741,3397.2,3397.1,0.001]
[1762624014224,7.71626741,3397.2,3397.0,0.001]
[1762624014225,4.60890326,3397.1,3397.0,0.001]
[1762624014387,7.88580002,3397.1,3397.0,0.001]
[1762624015021,6.94260002,3397.1,3397.0,0.001]
[1762624015211,0.68117722,3397.1,3397.0,0.0531]
[1762624015412,3.62486448,3397.1,3397.0,0.0531]
[1762624015612,4.88457648,3397.1,3397.0,0.0531]
[1762624016399,1.94088922,3397.1,3397.0,0.0531]
[1762624019530,1.94071457,3397.1,3397.0,0.0531]
[1762624020110,1.94071457,3397.1,3397.0,0.1052]
[1762624020506,1.53521057,3397.1,3397.0,0.1052]
[1762624021833,1.53521057,3397.1,3397.0,0.0531]
[1762624022033,4.47889783,3397.1,3397.0,0.0531]
[1762624022338,1.53521057,3397.1,3397.0,0.0531]
[1762624024821,1.53521057,3397.1,3397.0,0.1052]
[1762624025222,1.53521057,3397.1,3397.0,0.70469468]
[1762624025822,0.27549857,3397.1,3397.0,0.70469468]
[1762624026126,0.27549857,3397.1,3397.0,3.19537391]
[1762624026338,0.27549857,3397.1,3397.0,3.47087248]
[1762624026540,0.27449857,3397.1,3397.0,3.50031021]
[1762624026753,0.27449857,3397.1,3397.0,3.47087248]
[1762624028826,0.27449857,3397.1,3397.0,3.32447248]
[1762624029258,0.27449857,3397.1,3397.0,3.95150739]
[1762624034427,0.27449857,3397.1,3397.0,1.00773348]
[1762624034628,0.27449857,3397.1,3397.0,3.32447248]
[1762624034833,0.27449857,3397.1,3397.0,0.38069857]
[1762624035055,0.27449857,3397.1,3397.0,0.32859857]
[1762624035233,0.27449857,3397.1,3397.0,0.0531]
[1762624035429,0.27449857,3397.1,3397.0,2.99687391]
[1762624035664,0.27449857,3397.1,3397.0,3.64324795]